bitfinex/quotes_ETHUSD_20250821
["timestamp","ask_amount","ask_price","bid_price","bid_amount"]
[1755801660703,0.022,4261.8,4261.7,6.49440779]
[1755801660995,0.7997,4261.8,4261.7,1.805]
[1755801661165,0.7997,4261.8,4261.1,1.9226]
[1755801661365,0.48676601,4261.7,4261.2,3.985]
[1755801661597,0.48676601,4261.7,4261.1,1.9226]
[1755801661598,0.3149,4261.3,4261.1,1.805]
[1755801661771,0.3149,4261.3,4261.2,3.985]
[1755801662371,0.7777,4261.3,4261.2,3.985]
[1755801662565,0.7777,4261.3,4260.8,0.001]
[1755801662768,0.48676601,4261.2,4260.8,0.001]
[1755801662971,0.3149,4260.9,4260.8,0.001]
[1755801663703,0.3149,4260.9,4260.8,3.987]
[1755801664008,0.7777,4260.9,4260.8,3.987]
[1755801665469,0.7777,4260.9,4260.8,3.988]
[1755801666088,0.7777,4260.9,4260.8,0.001]
[1755801669593,0.7777,4260.9,4260.8,3.988]
[1755801671402,0.3149,4260.9,4260.8,3.988]
[1755801671602,0.4746,4261.2,4260.8,3.988]
[1755801671815,0.022,4261.8,4260.9,0.02346922]
[1755801672300,0.4746,4261.7,4261.0,0.02346866]
[1755801672907,0.4746,4261.7,4260.8,5.793]
[1755801672908,0.4746,4261.7,4260.9,3.68346922]
[1755801673113,0.4746,4261.7,4261.0,0.94764692]
[1755801673316,0.4746,4261.7,4261.1,0.02346811]
[1755801673521,0.4746,4261.7,4261.2,3.987]
[1755801673677,0.4746,4261.7,4261.3,0.02346701]
[1755801673881,0.4746,4261.6,4261.4,3.986]
[1755801674182,0.7823,4261.5,4261.4,3.986]
[1755801676521,0.7823,4261.5,4261.0,0.94764692]
[1755801676721,0.7823,4261.5,4260.8,1.806]
[1755801676722,0.49856601,4261.4,4260.8,1.806]
[1755801676894,0.49856601,4261.4,4261.1,3.984]
[1755801677093,0.3077,4261.2,4261.1,3.984]
[1755801677296,0.7823,4261.2,4261.1,3.985]
[1755801677899,0.7823,4261.2,4261.0,3.985]
[1755801678102,0.49856601,4261.1,4261.0,3.985]
[1755801678424,0.80626601,4261.1,4261.0,3.985]
[1755801678632,0.80626601,4261.1,4260.8,1.806]
[1755801678923,0.4746,4261.0,4260.8,5.791]
[1755801679125,0.33166601,4260.9,4260.8,5.791]
[1755801679326,0.7823,4260.9,4260.8,0.001]
[1755801682726,0.80626601,4260.9,4260.8,0.001]
[1755801683743,0.7823,4260.9,4260.8,0.001]
[1755801686139,20.81788763,4260.9,4260.8,0.001]
[1755801686444,23.01707275,4260.9,4260.8,0.001]
[1755801686607,26.99907275,4260.9,4260.8,0.001]
[1755801690410,26.88167639,4260.9,4260.8,0.001]
[1755801690911,26.9960381,4260.9,4260.8,0.001]
[1755801692485,27.85290152,4260.9,4260.8,0.001]
[1755801692859,27.85290152,4260.9,4260.3,0.001]
[1755801692860,3.0,4260.8,4260.3,0.001]
[1755801693059,3.0,4260.3,4259.9,0.001]
[1755801693291,0.3077,4260.0,4259.9,0.001]
[1755801693597,0.33166601,4260.0,4259.9,0.001]
[1755801693887,4.78726601,4260.0,4259.9,0.001]
[1755801694046,7.7633,4260.0,4259.9,0.001]
[1755801694250,9.35364557,4260.0,4259.9,0.001]
[1755801695156,8.57134557,4260.0,4259.9,0.001]
[1755801695784,8.57134557,4260.0,4259.9,0.3008]
[1755801696282,8.57134557,4260.0,4259.9,0.001]
[1755801696283,8.87904557,4260.0,4259.9,0.001]
[1755801696449,9.35364557,4260.0,4259.9,0.001]
[1755801699775,2.37264557,4260.0,4259.9,0.001]
[1755801700085,3.978,4260.2,4259.9,0.3041]
[1755801700286,0.02396601,4260.1,4259.9,0.001]
[1755801702059,3.978,4260.2,4259.9,0.001]
[1755801702899,6.978,4260.6,4260.1,0.3031]
[1755801703097,3.0,4260.5,4260.1,0.3031]
[1755801703462,3.978,4260.6,4260.1,0.3031]
[1755801703667,4.8566,4260.6,4260.1,0.3031]
[1755801704290,3.978,4260.6,4260.2,0.2553]
[1755801704490,0.002,4260.9,4260.5,0.3031]
[1755801704896,0.002,4260.9,4260.5,0.5584]
[1755801705088,0.002,4260.9,4260.5,0.3031]
[1755801706113,0.002,4260.9,4260.6,0.2553]
[1755801706402,0.002,4260.9,4260.8,0.3031]
[1755801707177,0.002,4260.9,4260.8,0.5584]
[1755801710292,0.002,4260.9,4260.8,0.3031]
[1755801711523,0.002,4260.9,4260.8,0.5584]
[1755801712030,0.002,4260.9,4260.8,0.81830977]
[1755801713929,0.002,4260.9,4260.8,1.47830977]
[1755801714126,0.002,4260.9,4260.8,6.82528686]
[1755801714291,0.002,4260.9,4260.8,6.80181709]
[1755801714498,0.002,4260.9,4260.8,4.45484]
[1755801714697,0.002,4260.9,4260.8,4.47830977]
[1755801715325,0.002,4260.9,4260.8,1.22300977]
[1755801715525,0.002,4260.9,4260.8,1.19954]
[1755801716025,0.002,4260.9,4260.8,0.53954]
[1755801716324,0.002,4260.9,4260.8,0.3031]
[1755801716719,0.3031,4260.9,4260.7,1.806]
[1755801717108,0.002,4260.9,4260.8,0.3031]
[1755801717840,0.002,4260.9,4260.7,1.806]
[1755801718811,0.7563,4260.8,4260.7,1.806]
[1755801719013,0.002,4260.9,4260.7,2.1091]
[1755801719243,0.002,4260.9,4260.8,0.02346977]
[1755801719912,0.002,4260.9,4260.8,0.32656977]
[1755801720317,0.002,4260.9,4260.8,0.93722675]
[1755801720507,0.7583,4260.9,4260.7,1.806]
[1755801720841,0.3031,4260.9,4260.7,1.806]
[1755801721042,0.002,4260.9,4260.8,0.3031]
[1755801721243,0.002,4260.9,4260.8,0.32656977]
[1755801721939,0.002,4260.9,4260.8,0.02346977]
[1755801722340,0.3031,4260.9,4260.7,1.806]
[1755801722545,0.7583,4260.9,4260.8,3.974]
[1755801723317,0.002,4260.9,4260.8,3.974]
[1755801723617,0.002,4260.9,4260.8,4.8551]
[1755801724935,0.002,4260.9,4260.8,0.8811]
[1755801725141,0.002,4260.9,4260.8,4.29856977]
[1755801725558,0.002,4260.9,4260.8,4.9351]
[1755801725845,0.002,4260.9,4260.8,7.53737709]
[1755801727947,0.002,4260.9,4260.8,7.65497709]
[1755801730430,0.002,4260.9,4260.8,1.0807]
[1755801730629,0.002,4260.9,4260.8,7.72022356]
[1755801730932,0.002,4260.9,4260.8,7.95205379]
[1755801731664,0.002,4260.9,4260.8,7.69675379]
[1755801731960,0.002,4260.9,4260.8,1.3787767]
[1755801732160,0.002,4260.9,4260.8,5.3517767]
[1755801732972,0.002,4260.9,4260.8,3.72575379]
[1755801733269,0.002,4260.9,4260.8,25.01311119]
[1755801733447,0.002,4260.9,4260.8,27.98964142]
[1755801737565,0.002,4260.9,4260.8,24.01664142]
[1755801737879,0.002,4260.9,4260.8,27.98764142]
[1755801738666,0.002,4260.9,4260.8,24.01664142]
[1755801738842,0.002,4260.9,4260.8,23.76134142]
[1755801739038,0.002,4260.9,4260.8,27.73034142]
[1755801739857,0.002,4260.9,4260.8,27.98564142]
[1755801740572,0.002,4261.4,4260.8,27.98564142]
[1755801740573,0.002,4261.4,4261.3,3.00670171]
[1755801740865,0.002,4261.4,4261.3,27.86600391]
[1755801741069,0.002,4261.4,4261.3,28.2154369]
[1755801741539,0.002,4261.4,4261.3,27.9601369]
[1755801741871,0.002,4261.4,4261.3,6.95654927]
[1755801742041,0.002,4261.4,4261.3,10.62764927]
[1755801742236,0.3094,4261.4,4261.3,0.65294756]
[1755801742467,0.7613,4261.4,4261.3,3.968]
[1755801742687,0.7613,4261.4,4261.3,0.66]
[1755801742893,0.7613,4261.4,4261.3,3.968]
[1755801743192,0.7613,4261.4,4261.3,4.628]
[1755801743474,0.7613,4261.4,4261.3,3.968]
[1755801743675,0.7613,4261.4,4261.3,4.628]
[1755801744995,0.7613,4261.4,4261.3,0.66]
[1755801745146,0.7613,4261.4,4260.7,1.806]
[1755801745483,0.4519,4261.3,4260.8,3.967]
[1755801745698,0.3074,4260.9,4260.8,4.627]
[1755801746184,0.7593,4260.9,4260.8,4.627]
[1755801747346,0.7593,4260.9,4260.8,3.967]
[1755801748096,0.002,4261.4,4260.8,3.99046977]
[1755801748305,0.7593,4260.9,4260.8,0.02346977]
[1755801748502,0.7593,4260.9,4260.8,3.967]
[1755801748661,0.002,4261.4,4260.8,5.22776977]
[1755801748860,0.4519,4261.2,4260.9,0.66]
[1755801749172,0.4519,4261.1,4261.0,3.968]
[1755801749365,0.7593,4261.1,4261.0,3.968]
[1755801750087,0.7593,4261.1,4260.7,1.806]
[1755801750286,0.7593,4261.1,4260.8,3.967]
[1755801750287,0.4519,4261.0,4260.8,3.967]
[1755801750587,0.3074,4260.9,4260.7,1.806]
[1755801750757,0.4519,4260.8,4260.7,1.806]
[1755801750960,0.7593,4260.8,4260.7,5.775]
[1755801751160,0.7593,4260.8,4260.3,0.001]
[1755801751374,0.47586601,4260.7,4260.3,0.001]
[1755801751561,0.3074,4260.4,4260.1,3.97]
[1755801751761,0.47586601,4260.3,4259.9,0.001]
[1755801751962,0.3074,4260.0,4259.9,0.001]
[1755801752461,0.7593,4260.0,4259.9,0.001]
[1755801761781,0.78326601,4260.0,4259.9,0.001]
[1755801762698,0.7593,4260.0,4259.9,0.001]
[1755801765679,7.66875477,4260.0,4259.9,0.001]
[1755801765889,7.64478876,4260.0,4259.9,0.001]
[1755801767478,11.61378876,4260.0,4259.9,0.001]
[1755801768199,12.27378876,4260.0,4259.9,0.001]
[1755801769722,7.64478876,4260.0,4259.9,0.001]
[1755801769884,11.61378876,4260.0,4259.9,0.001]
[1755801776555,12.11839645,4260.0,4259.9,0.001]
[1755801776853,12.77839645,4260.0,4259.9,0.001]
[1755801777223,12.90988091,4260.0,4259.9,0.001]
[1755801778046,7.39009645,4260.0,4259.9,0.001]
[1755801778344,5.776,4260.0,4259.9,0.001]
[1755801778553,8.776,4260.0,4259.9,0.001]
[1755801778840,26.59078763,4260.0,4259.9,0.001]
[1755801779047,27.09594688,4260.0,4259.9,0.001]
[1755801779412,27.22758927,4260.0,4259.9,0.001]
[1755801779850,29.5897289,4260.0,4259.9,0.001]
[1755801780230,30.44259543,4260.0,4259.9,0.001]
[1755801780414,31.10259543,4260.0,4259.9,0.001]
[1755801780810,30.47026661,4260.0,4259.9,0.001]
[1755801781345,30.4704025,4260.0,4259.9,0.001]
[1755801781645,12.30671487,4260.0,4259.9,0.001]
[1755801781843,9.30671487,4260.0,4259.9,0.001]
[1755801782144,11.77887278,4260.0,4259.9,0.001]
[1755801782442,11.64710906,4260.0,4259.9,0.001]
[1755801782641,7.67410906,4260.0,4259.9,0.3026]
[1755801782843,9.28496943,4260.0,4259.9,0.3026]
[1755801783043,8.779,4260.0,4259.9,0.3026]
[1755801783544,2.43883885,4260.7,4259.9,0.5589]
[1755801783845,3.0,4260.5,4259.9,0.5589]
[1755801784047,0.002,4260.8,4260.0,0.2563]
[1755801784250,0.02596601,4260.8,4259.9,0.001]
[1755801784560,3.53222055,4260.8,4259.9,0.001]
[1755801784734,3.02596601,4260.8,4259.9,0.001]
[1755801785249,0.50624703,4260.7,4259.9,0.001]
[1755801785446,0.02396601,4260.6,4259.9,0.001]
[1755801785745,3.977,4260.5,4259.9,0.001]
[1755801785957,0.02396601,4260.4,4259.9,0.001]
[1755801786116,0.35983617,4260.3,4259.9,0.001]
[1755801786447,0.02396601,4260.2,4259.9,0.001]
[1755801786854,3.977,4260.5,4260.1,0.3016]
[1755801787145,0.02396601,4260.4,4260.1,0.3016]
[1755801787551,3.977,4260.5,4260.1,0.3016]
[1755801787851,0.3013,4260.2,4259.9,0.001]
[1755801788050,0.02396601,4260.1,4259.9,0.001]
[1755801788252,3.976,4260.0,4259.9,0.001]
[1755801788953,7.7402,4260.0,4259.9,0.001]
[1755801790122,8.37834398,4260.0,4259.9,0.001]
[1755801790451,9.49925774,4260.0,4259.9,0.001]
[1755801791740,9.27946226,4260.0,4259.9,0.001]
[1755801793663,9.49929301,4260.0,4259.9,0.001]
[1755801794152,9.27946226,4260.0,4259.9,0.001]
[1755801794727,9.49930112,4260.0,4259.9,0.001]
[1755801795567,10.15930112,4260.0,4259.9,0.001]
[1755801795936,10.79213997,4260.0,4259.9,0.001]
[1755801796357,40.1593587,4260.0,4259.9,0.001]
[1755801798568,0.66,4259.8,4259.4,0.001]
[1755801798865,20.99688763,4259.5,4259.4,0.001]
[1755801799166,25.82596825,4259.5,4259.4,0.001]
[1755801799578,26.28886825,4259.5,4259.4,0.001]
[1755801802368,58.63656164,4259.5,4259.4,0.001]
[1755801802570,5.3477485,4259.4,4258.9,0.001]
[1755801802869,0.66,4259.3,4258.9,0.001]
[1755801803076,3.9613,4259.1,4258.9,0.001]
[1755801803369,4.81938062,4259.1,4258.9,0.001]
[1755801803805,5.28228062,4259.1,4258.9,0.001]
[1755801804143,0.66,4258.9,4258.2,0.001]
[1755801804371,27.08287842,4258.8,4258.2,0.001]
[1755801804602,36.0081344,4258.7,4258.2,0.001]
[1755801804779,34.4675839,4258.7,4258.2,0.001]
[1755801804984,37.63041502,4258.7,4258.2,0.001]
[1755801805184,35.28228062,4258.7,4258.2,0.001]
[1755801805480,38.27642965,4258.7,4258.2,0.001]
[1755801806271,37.64442025,4258.7,4258.2,0.001]
[1755801807171,37.18152025,4258.7,4258.2,0.001]
[1755801807476,40.85122025,4258.7,4258.2,0.001]
[1755801807642,41.61542025,4258.7,4258.2,0.001]
[1755801808039,7.49942353,4258.7,4258.2,0.001]
[1755801808367,22.43078763,4258.7,4258.2,0.001]
[1755801808674,25.43078763,4258.7,4258.2,0.001]
[1755801809472,3.0,4258.7,4258.2,0.001]
[1755801809675,6.99496601,4258.7,4258.6,0.3089]
[1755801809856,6.971,4258.7,4258.6,0.3089]
[1755801810059,7.90812281,4258.7,4258.6,0.001]
[1755801811561,7.90812281,4258.7,4258.6,0.3089]
[1755801813801,3.0,4258.6,4258.2,0.001]
[1755801813971,6.99496601,4258.5,4258.2,0.001]
[1755801814173,7.2723,4258.5,4258.2,0.001]
[1755801814371,10.09733963,4258.5,4258.2,0.001]
[1755801814567,5.36213963,4258.5,4258.2,0.001]
[1755801814906,6.971,4258.5,4258.2,0.001]
[1755801815796,3.0,4258.5,4258.2,0.001]
[1755801815974,6.971,4258.5,4258.2,0.001]
[1755801818918,7.2648,4258.5,4258.2,0.001]
[1755801819210,7.7124,4258.5,4258.2,0.001]
[1755801819373,10.07453963,4258.5,4258.2,0.001]
[1755801819713,10.07453963,4258.5,4258.3,0.001]
[1755801821417,3.66,4258.4,4258.2,0.001]
[1755801821599,0.66,4258.2,4258.1,0.001]
[1755801821769,51.84709395,4258.2,4258.1,0.001]
[1755801821976,51.84709395,4258.2,4257.8,0.021]
[1755801821977,0.66,4258.0,4257.8,0.021]
[1755801822284,10.1133521,4257.9,4257.8,0.021]
[1755801822475,0.66,4257.6,4256.8,0.021]
[1755801822672,20.98938763,4257.4,4256.8,0.021]
[1755801822876,23.84439331,4257.4,4256.8,0.021]
[1755801823215,20.69558763,4256.9,4256.8,0.021]
[1755801823387,57.28177063,4256.9,4256.8,0.021]
[1755801823715,58.08094441,4256.9,4256.8,0.021]
[1755801824218,5.313383,4256.9,4256.8,0.021]
[1755801824374,9.291383,4256.9,4256.8,0.021]
[1755801824572,10.97339601,4256.9,4256.8,0.021]
[1755801824807,10.46701301,4256.9,4256.8,0.021]
[1755801825475,9.72561301,4256.9,4256.8,0.021]
[1755801829287,10.46701301,4256.9,4256.8,0.021]
[1755801829915,58.16260064,4256.9,4256.8,0.021]
[1755801830091,58.66842266,4256.9,4256.8,0.021]
[1755801831105,58.8001337,4256.9,4256.8,0.021]
[1755801831700,3.0,4256.2,4255.9,0.001]
[1755801831875,3.0,4256.0,4255.9,0.001]
[1755801832075,6.975,4256.0,4255.9,0.001]
[1755801834204,1.807,4256.1,4255.9,0.001]
[1755801834379,6.976,4256.0,4255.9,0.001]
[1755801835511,3.0,4256.0,4255.9,0.001]
[1755801835678,6.975,4256.0,4255.9,0.001]
[1755801835879,0.4476,4257.1,4255.9,0.001]
[1755801835880,1.807,4256.8,4255.9,0.001]
[1755801836102,6.99896601,4256.7,4255.9,0.001]
[1755801836303,7.4226,4256.7,4255.9,0.001]
[1755801837414,0.02396601,4256.6,4255.9,0.001]
[1755801837607,3.0,4256.4,4255.9,0.001]
[1755801837807,3.0,4256.2,4255.9,0.001]
[1755801838004,4.00396601,4256.1,4255.9,0.001]
[1755801838313,3.2938,4256.0,4255.9,0.001]
[1755801838691,3.7414,4256.0,4255.9,0.001]
[1755801839832,3.0,4256.0,4255.9,0.001]
[1755801840118,3.7414,4256.0,4255.9,0.001]
[1755801840412,4.58357966,4256.0,4255.9,0.001]
[1755801841008,3.86614567,4256.0,4255.9,0.001]
[1755801841196,3.979,4256.0,4255.9,0.001]
[1755801844118,3.978,4256.0,4255.9,0.001]
[1755801846130,4.7194,4256.0,4255.9,0.001]
[1755801846329,3.978,4256.0,4255.9,0.001]
[1755801847115,4.7194,4256.0,4255.9,0.001]
[1755801847332,3.978,4256.0,4255.9,0.001]
[1755801847533,3.0,4256.7,4255.9,0.001]
[1755801847735,9.2117009,4256.6,4255.9,0.001]
[1755801847915,6.976,4256.6,4255.9,0.001]
[1755801849031,3.0,4256.4,4255.9,0.001]
[1755801849215,2.5293613,4256.8,4255.9,0.001]
[1755801849419,3.0,4256.6,4255.9,0.001]
[1755801849615,0.02396601,4256.5,4255.9,0.001]
[1755801849816,3.974,4256.4,4255.9,0.001]
[1755801850045,0.02396601,4256.3,4255.9,0.001]
[1755801850247,0.95273273,4256.5,4255.9,0.001]
[1755801850546,3.974,4256.4,4255.9,0.001]
[1755801852953,2.2546,4256.8,4255.9,0.001]
[1755801852954,1.807,4256.8,4255.9,0.001]
[1755801853252,3.0,4256.6,4255.9,0.001]
[1755801853452,6.974,4256.7,4255.9,0.001]
[1755801853747,3.0,4256.6,4255.9,0.001]
[1755801853952,1.809,4256.8,4255.9,0.001]
[1755801854253,3.974,4256.6,4255.9,0.02449679]
[1755801856961,0.46036601,4256.5,4255.9,0.001]
[1755801857199,1.38470261,4256.5,4255.9,0.001]
[1755801858121,0.2923,4256.0,4255.9,0.001]
[1755801858527,0.7287,4256.0,4255.9,0.001]
[1755801859747,0.02396601,4256.2,4255.9,0.001]
[1755801860153,0.02396601,4256.3,4255.9,0.001]
[1755801860652,0.46036601,4256.3,4255.9,0.001]
[1755801861052,0.4364,4256.3,4255.9,0.001]
[1755801861250,3.974,4256.4,4255.9,0.001]
[1755801861829,0.46036601,4256.3,4255.9,0.001]
[1755801862230,0.4364,4256.3,4255.9,0.001]
[1755801862431,0.02396601,4256.2,4255.9,0.001]
[1755801863125,0.002,4257.3,4255.9,0.02449679]
[1755801863126,0.4364,4257.0,4255.9,0.02449679]
[1755801863331,3.973,4256.7,4255.9,0.02449679]
[1755801864550,0.02396601,4256.6,4255.9,0.001]
[1755801865250,0.46036601,4256.6,4255.9,0.001]
[1755801865447,0.4364,4256.6,4255.9,0.02449679]
[1755801866441,0.46036601,4256.6,4255.9,0.001]
[1755801867476,0.4364,4256.6,4255.9,0.02449679]
[1755801867851,3.973,4256.7,4255.9,0.02449679]
[1755801868463,0.46036601,4256.6,4255.9,0.02449679]
[1755801868662,0.46036601,4256.6,4255.9,0.001]
[1755801869053,0.2923,4256.0,4255.9,0.001]
[1755801869653,0.7287,4256.0,4255.9,0.001]
[1755801879990,0.4564,4256.3,4255.9,0.001]
[1755801880369,0.002,4256.8,4255.9,0.001]
[1755801880569,0.3058,4256.0,4255.9,0.001]
[1755801880772,0.7622,4256.0,4255.9,0.001]
[1755801882468,1.23562,4256.0,4255.8,0.021]
[1755801882775,0.4564,4255.9,4255.4,0.001]
[1755801882989,0.3058,4255.5,4255.4,0.001]
[1755801883383,0.7622,4255.5,4255.4,0.001]
[1755801883787,0.78616601,4255.5,4255.4,0.001]
[1755801883994,1.26198261,4255.5,4255.4,0.001]
[1755801887680,2.05400234,4255.5,4255.4,0.001]
[1755801887879,5.78105103,4255.5,4255.4,0.001]
[1755801888097,5.75708502,4255.5,4255.4,0.001]
[1755801888504,5.53704092,4255.5,4255.4,0.001]
[1755801888777,6.38840154,4255.5,4255.4,0.001]
[1755801889184,35.75694739,4255.5,4255.4,0.001]
[1755801891011,35.40502119,4255.5,4255.4,0.001]
[1755801891222,5.75644034,4255.5,4255.4,0.001]
[1755801891385,5.53680337,4255.5,4255.4,0.001]
[1755801891585,35.53680337,4255.5,4255.4,0.001]
[1755801892081,5.53680337,4255.5,4255.4,0.001]
[1755801892486,35.53680337,4255.5,4255.4,0.001]
[1755801895412,35.40502119,4255.5,4255.4,0.001]
[1755801896430,47.27602187,4255.5,4255.4,0.001]
[1755801900235,0.4758166,4255.5,4255.4,0.001]
[1755801900409,3.973,4255.5,4255.4,0.001]
[1755801901642,7.2788,4255.5,4255.4,0.001]
[1755801901802,7.7352,4255.5,4255.4,0.001]
[1755801902004,6.973,4255.5,4255.4,0.001]
[1755801902844,1.808,4256.1,4255.4,0.001]
[1755801903043,3.0,4255.9,4255.4,0.001]
[1755801903250,3.973,4255.8,4255.4,0.001]
[1755801903445,3.973,4255.7,4255.4,0.001]
[1755801904020,0.02396601,4255.6,4255.4,0.001]
[1755801904213,3.973,4255.5,4255.4,0.001]
[1755801905230,4.4183366,4255.5,4255.4,0.001]
[1755801905443,8.20450261,4255.5,4255.4,0.001]
[1755801905646,8.1805366,4255.5,4255.4,0.001]
[1755801908856,9.346607,4255.5,4255.4,0.001]
[1755801909356,9.69811487,4255.5,4255.4,0.001]
[1755801909561,39.69811487,4255.5,4255.4,0.001]
[1755801909759,40.32956902,4255.5,4255.4,0.001]
[1755801910339,39.69811487,4255.5,4255.4,0.001]
[1755801910931,42.04801499,4255.5,4255.4,0.001]
[1755801911126,39.69811487,4255.5,4255.4,0.001]
[1755801911329,40.53951961,4255.5,4255.4,0.001]
[1755801911528,42.88941973,4255.5,4255.4,0.001]
[1755801911861,42.8896257,4255.5,4255.4,0.001]
[1755801912230,42.04822096,4255.5,4255.4,0.001]
[1755801912440,3.0,4255.4,4254.9,0.001]
[1755801912669,0.66,4254.7,4254.5,0.001]
[1755801912845,37.65667985,4254.6,4254.5,0.001]
[1755801913040,38.57868424,4254.6,4254.5,0.001]
[1755801913585,39.42390842,4254.6,4254.5,0.001]
[1755801913944,7.83078424,4254.6,4254.5,0.001]
[1755801914278,6.71435098,4254.6,4254.5,0.001]
[1755801914575,7.83078424,4254.6,4254.5,0.001]
[1755801914874,0.5060704,4254.6,4254.5,0.001]
[1755801915264,3.973,4254.7,4254.5,0.001]
[1755801915466,3.99696601,4254.6,4254.5,0.001]
[1755801915842,1.808,4255.3,4254.5,0.001]
[1755801916189,3.0,4255.1,4254.5,0.001]
[1755801916388,3.0,4254.9,4254.5,0.001]
[1755801916558,3.99696601,4254.8,4254.5,0.001]
[1755801917107,3.973,4254.8,4254.5,0.001]
[1755801917457,0.02396601,4254.7,4254.5,0.001]
[1755801917658,3.973,4254.6,4254.5,0.001]
[1755801917953,1.808,4255.3,4254.5,0.001]
[1755801918187,4.48019344,4255.2,4254.5,0.001]
[1755801918486,3.973,4255.2,4254.5,0.001]
[1755801919355,0.02396601,4255.1,4254.5,0.001]
[1755801924171,0.4399,4255.0,4254.5,0.001]
[1755801924380,3.99596601,4254.9,4254.5,0.001]
[1755801924792,0.4399,4254.8,4254.5,0.001]
[1755801925105,0.308,4254.6,4254.5,0.001]
[1755801925398,7.28,4254.6,4254.5,0.001]
[1755801925560,8.4942866,4254.6,4254.5,0.001]
[1755801926664,9.00123289,4254.6,4254.5,0.001]
[1755801927961,0.50694629,4254.6,4254.5,0.001]
[1755801928162,1.808,4255.3,4254.5,0.001]
[1755801928163,0.50690499,4255.0,4254.5,0.001]
[1755801928398,3.972,4254.9,4254.5,0.001]
[1755801928595,3.972,4254.8,4254.5,0.001]
[1755801929369,0.02396601,4254.7,4254.5,0.001]
[1755801929592,0.308,4254.6,4254.5,0.001]
[1755801929806,0.7479,4254.6,4254.5,0.001]
[1755801931363,3.972,4254.8,4254.5,0.001]
[1755801931564,0.02396601,4254.7,4254.5,0.001]
[1755801931806,3.972,4254.6,4254.5,0.001]
[1755801934289,5.07709763,4254.6,4254.5,0.001]
[1755801934492,8.07709763,4254.6,4254.5,0.001]
[1755801936066,9.24421575,4254.6,4254.5,0.001]
[1755801936613,9.59640494,4254.6,4254.5,0.001]
[1755801936771,9.59637716,4254.6,4254.5,0.001]
[1755801937305,8.93637596,4254.6,4254.5,0.001]
[1755801938800,9.59637596,4254.6,4254.5,0.001]
[1755801939877,6.25828476,4254.6,4254.5,0.001]
[1755801940076,4.65637596,4254.6,4254.5,0.001]
[1755801940270,3.50711812,4254.6,4254.5,0.001]
[1755801940475,4.47911812,4254.6,4254.5,0.001]
[1755801940803,3.972,4254.6,4254.5,0.001]
[1755801941008,0.02396601,4254.9,4254.5,0.001]
[1755801941212,3.972,4254.8,4254.5,0.001]
[1755801941499,3.972,4254.9,4254.5,0.001]
[1755801941706,3.972,4255.0,4254.5,0.001]
[1755801941889,1.808,4255.3,4254.5,0.001]
[1755801942073,3.99596601,4255.2,4254.5,0.001]
[1755801942392,5.04566261,4255.2,4254.5,0.001]
[1755801942597,0.4693,4255.1,4254.5,0.001]
[1755801942797,0.02396601,4255.0,4254.5,0.001]
[1755801943104,0.2984,4254.6,4254.5,0.001]
[1755801943309,4.29436601,4254.6,4254.5,0.001]
[1755801943494,4.4483666,4254.6,4254.5,0.001]
[1755801944001,3.972,4254.6,4254.5,0.001]
[1755801944975,4.7397,4254.6,4254.5,0.001]
[1755801946009,3.972,4254.6,4254.5,0.001]
[1755801946381,0.02396601,4254.9,4254.5,0.001]
[1755801946581,3.972,4254.8,4254.5,0.001]
[1755801946777,0.5803966,4255.2,4254.5,0.001]
[1755801946977,3.99596601,4255.1,4254.5,0.001]
[1755801949107,0.002,4254.8,4254.5,0.001]
[1755801949892,0.4713,4254.8,4254.5,0.001]
[1755801950094,0.02396601,4254.7,4254.5,0.001]
[1755801951094,0.002,4254.8,4254.5,0.001]
[1755801951412,0.02596601,4254.8,4254.5,0.001]
[1755801952223,0.002,4254.8,4254.5,0.001]
[1755801958337,0.2984,4254.6,4254.5,0.001]
[1755801958504,0.7677,4254.6,4254.5,0.001]
[1755801959527,1.2441666,4254.6,4254.5,0.001]
[1755801961799,3.973,4254.8,4254.5,0.001]
[1755801962033,0.002,4254.8,4254.5,0.001]
[1755801965611,0.4693,4254.7,4254.5,0.001]
[1755801965812,0.79166601,4254.6,4254.5,0.001]
[1755801966213,0.7677,4254.6,4254.5,0.001]
[1755801967241,0.79166601,4254.6,4254.5,0.001]
[1755801967737,1.44893261,4254.6,4254.5,0.001]
[1755801968342,0.6572666,4254.6,4254.5,0.001]
[1755801968510,0.002,4254.8,4254.5,0.001]
[1755801968714,0.02596601,4254.8,4254.5,0.001]
[1755801968919,0.3128,4254.6,4254.5,0.001]
[1755801969351,0.33676601,4254.6,4254.5,0.001]
[1755801969529,1.12564261,4254.6,4254.5,0.001]
[1755801970128,1.63298075,4254.6,4254.5,0.001]
[1755801970449,1.7651308,4254.6,4254.5,0.001]
[1755801972521,1.72725375,4254.6,4254.5,0.001]
[1755801973337,5.69825375,4254.6,4254.5,0.001]